{"text_format":"2","workbook":"xlsx","n_sheets":2,"sheets":["Sheet","Лист1"],"not_rendered":{"charts":0,"images":0,"macros":0,"external_links":0,"defined_names":3,"comments":0,"pivot_tables":0},"unopened":[],"bounds":{"document_bytes":16777216,"sheet_cells":100000,"run_cost":"one","rows_first":2000,"rows_last":500,"rows_between":2000,"halvings":0,"cell_chars":16384,"cell_head_chars":4096},"cells_cut":0,"cells_raw":0,"read":"whole","date_system":"1900"}

{"sheet":"Sheet","index":0,"n_rows":450,"n_cols":13,"rows_kept":450,"cut":false,"hidden":false,"merged":[[306,0,306,12],[266,0,266,12],[267,0,267,12],[276,0,276,12],[299,0,299,12],[238,0,238,12],[260,0,260,12],[139,0,139,11],[184,0,184,12],[186,0,186,12],[154,0,154,12],[122,0,122,12],[76,0,76,12],[101,0,101,12],[105,0,105,12],[369,0,369,12],[286,0,286,12],[234,0,234,12],[239,0,239,12],[264,0,264,12],[109,0,109,12],[187,0,187,12],[171,0,171,12],[168,0,168,12],[166,0,166,12],[192,0,192,12],[193,0,193,12],[195,0,195,12],[217,0,217,12],[218,0,218,12],[305,0,305,12],[261,0,261,12],[1,3,2,8],[0,10,9,12],[5,4,7,9],[8,4,8,9],[63,0,63,12],[73,0,73,12],[65,0,65,12],[66,0,66,12],[15,0,15,12],[10,5,10,8],[449,0,449,12],[448,0,448,12],[111,0,111,12],[112,0,112,12],[129,0,129,12],[236,0,236,12],[397,0,397,12],[300,0,300,12],[303,0,303,12],[132,0,132,12],[16,0,16,12],[24,0,24,12],[26,0,26,12],[27,0,27,12],[35,0,35,12],[70,0,70,12],[59,0,59,12],[55,0,55,12],[75,0,75,12],[400,0,400,12],[158,0,158,12],[93,0,93,12],[94,0,94,12],[98,0,98,12],[100,0,100,12],[382,0,382,12],[384,0,384,12],[385,0,385,12],[124,0,124,12],[370,0,370,12],[409,0,409,12],[161,0,161,12],[163,0,163,12],[214,0,214,12],[131,0,131,12],[393,0,393,12],[379,0,379,12],[148,0,148,12],[147,0,147,12],[152,0,152,12],[164,0,164,12],[170,0,170,12],[155,0,155,12],[250,0,250,12],[229,0,229,12],[227,0,227,12],[177,0,177,12],[191,0,191,12],[4,4,4,9],[442,0,442,12],[230,0,230,12],[401,0,401,12],[87,0,87,12],[437,0,437,12],[159,0,159,12],[408,0,408,12],[407,0,407,12],[406,0,406,12]]}
[{"$nulls":10},"Приложение № 1                                                             к распоряжению Комитета \nпо промышленной политике, инновациям \nи торговле Санкт-Петербурга                                        от 17.10.2023 г. № 7314-р"]
[]
[]
[]
[{"$nulls":4},"ЧАСТЬ 1. СХЕМЫ РАЗМЕЩЕНИЯ"]
[{"$nulls":4}," нестационарных торговых объектов на земельных участках, находящихся в государственной собственности Санкт-Петербурга или государственная собственность \nна которые не разграничена"]
[]
[]
[{"$nulls":4},"«Торговые объекты, обеспечивающие проведение ярмарок»"]
[]
[{"$nulls":5},"Раздел: Адмиралтейский район Санкт-Петербурга"]
[]
["№ п/п","Номер заявления в Региональной информационной системе \"Геоинформационная система Санкт-Петербурга\"","Адрес \nземельного участка (местоположение)","Площадь земельного участка (кв.м)","Кадастровый номер \n(при наличии)","Сведения о наличии или отсутствии размещённых на земельных участках торговых объектов (общая площадь в кв.м)","Сведения о наличии заключенных договоров на размещение нестационарных торговых объектов (договоров аренды) с указанием срока аренды земельных участков (№, дата и срок аренды)","Отношение арендатора земельного участка к категории субъектов малого или среднего предпринимательства","Дата принятия КИО решения о согласовании включения торгового объекта в схему размещения","Орган, осуществляющий полномочия собственника земельного участка, на котором размещается торговый объект","Планируемый срок размещения торгового объекта","Уровень достижения нормативов минимальной обеспеченности населения площадью торговых объектов, %","Примечание"]
[1,2,3,4,5,6,7,8,9,10,11,12,13]
[]
["I. Торговые объекты, обеспечивающие проведение ярмарок выходного дня и региональных ярмарок"]
["Павильоны1"]
[1,"36639","сад Театра юных зрителей, уч. 8 (севернее д. 1, литера А по Пионерской пл.; ЗНОП № 1008)","501,34","-","-","-","-","2015-07-01","КИО","-","норматив              не установлен"]
[2,"36640","сад Театра юных зрителей, уч. 11 (севернее д. 1,          литера А по Пионерской пл.; ЗНОП № 1008)","485,61","-","-","-","-","2015-07-01","КИО","-","норматив              не установлен"]
[3,"36641","сад Театра юных зрителей, уч. 12 (севернее д. 1,          литера А по Пионерской пл.; ЗНОП № 1008)","485,2","-","-","-","-","2015-07-01","КИО","-","норматив              не установлен"]
[4,"36642","сад Театра юных зрителей, уч. 10 (севернее д. 1,           литера А по Пионерской пл.; ЗНОП № 1008)","423,74","-","-","-","-","2015-07-01","КИО","-","норматив              не установлен"]
[5,"36643","сад Театра юных зрителей, уч. 13 (севернее д. 1, литера А по Пионерской пл.; ЗНОП № 1008)","424,79","-","-","-","-","2015-07-01","КИО","-","норматив              не установлен"]
[6,"36644","сад Театра юных зрителей, уч. 9 (севернее д. 1, лит. А по Пионерской пл.; ЗНОП № 1008)","420,89","-","-","-","-","2015-07-01","КИО","-","норматив              не установлен"]
[]
["Раздел: Василеостровский район Санкт-Петербурга"]
[]
["I. Торговые объекты, обеспечивающие проведение ярмарок выходного дня и региональных ярмарок"]
["Павильоны1"]
[1,23359,"пл. Европы, уч. 30 (у д. 14, лит. Б по ул. Кораблестроителей)","486","-","-","-","-","2015-07-01","КИО","-","норматив              не установлен","Перенесен \nв раздел II. "]
[2,"36645","пл. Собчака, уч. 2 (у д. 83, литера А по Большому пр. В.О.)","498,59","-","-","-","-","2015-07-01","КИО","-","норматив              не установлен"]
[3,"35489","Новосмоленская наб., \nу д.1, литера А","12,56","-","-","-","-","2019-11-28","КИО","-","норматив              не установлен"]
[4,"35441","Новосмоленская наб., \nу д.1, литера А","18,25","-","-","-","-","2019-11-28","КИО","-","норматив              не установлен"]
[5,"35491","Новосмоленская наб., уч. 74 (у д. 1, литера А)","32,99","-","-","-","-","2019-11-28","КИО","-","норматив              не установлен"]
[6,34665,"Новосмоленская наб., уч. 76, (у д. 1, литера А)",30.5,"-","-","-","-","2019-11-28","КИО","-","норматив              не установлен","Перенесен \nиз подраздела \"Палатки\" \nраздела I"]
[7,"35490","Новосмоленская наб., \nу д.1, литера А","35,28","-","-","-","-","2019-11-28","КИО","-","норматив              не установлен","Перенесен \nиз подраздела \"Палатки\" \nраздела I"]
["Палатки"]
[1,20273,"7-я линия В.О., уч. 81 (напротив д. 40, литера А)","30","-","-","-","-","-","-","-","-","Исключен"]
[2,"20268","Новосмоленская наб., уч. 77 (у д. 1, литера А)","30","-","-","-","-","-","-","-","-","Исключен"]
[3,"20267","Новосмоленская наб., уч. 76 (у д. 1, литера А)","30","-","-","-","-","-","-","-","-","Исключен"]
[4,20266,"Новосмоленская наб., уч. 75 (у д. 1, литера А)","15","-","-","-","-","-","-","-","-","Исключен"]
[5,20265,"Новосмоленская наб., уч. 74 (у д. 1, литера А)","25","-","-","-","-","-","-","-","-","Исключен"]
[6,"20277","7-я линия В.О., уч. 85 (напротив д. 34, литера А)","30","-","-","-","-","-","-","-","-","Исключен"]
[7,"20275","7-я линия В.О., уч. 83 (напротив д. 40, литера А)","25","-","-","-","-","-","-","-","-","Исключен"]
[8,20264,"Новосмоленская наб., уч. 73 (у д. 1, литера А)","20","-","-","-","-","-","-","-","-","Исключен"]
[9,20311,"Парусная ул., уч. 10 (напротив д. 19, литера Ф по Шкиперскому протоку)","30","-","-","-","-","-","-","-","-","Исключен"]
[10,20312,"Парусная ул., уч. 11 (напротив д. 19, литера Ф по Шкиперскому протоку)","30","-","-","-","-","-","-","-","-","Исключен"]
[11,20313,"Парусная ул., уч. 12 (напротив д. 19, литера Ф по Шкиперскому протоку)","30","-","-","-","-","-","-","-","-","Исключен"]
[12,20314,"Парусная улица, уч. 13 (напротив д. 19, литера Ф по Шкиперскому протоку)","30","-","-","-","-","-","-","-","-","Исключен"]
[13,20276,"7-я линия В.О., уч. 84 (напротив д. 38, литера А)","30","-","-","-","-","-","-","-","-","Исключен"]
[14,"20274","7-я линия В.О., уч. 82 (напротив д. 40, литера А)","10","-","-","-","-","-","-","-","-","Исключен"]
[15,20315,"Парусная улица, уч. 14 (напротив д. 19, литера Ф \nпо Шкиперскому протоку)","30","-","-","-","-","-","-","-","-","Исключен"]
[16,20272,"7-я линия В.О., уч. 80 (напротив д. 42, литера А)","30","-","-","-","-","-","-","-","-","Исключен"]
[17,"20263","Новосмоленская наб., уч. 72 (у д. 1, литера А)","10","-","-","-","-","-","-","-","-","Исключен"]
[18,34257,"Прибалтийская пл., уч. 1\n(у д.14, литера Б\nпо ул. Кораблестроителей)","486","-","-","-","-","-","-","-","-","Исключен"]
[19,"36863","ул.Кораблестроителей, уч.1, (западнее д.50, литера А)","7,65","-","-","-","-","2022-07-21","КИО","-","норматив              не установлен"]
["Киоски"]
[1,35332,"Новосмоленская наб., уч.6 (юго-восточнее пересечения ул.Беринга и ул.Наличной)",95.75,"-","-","-","-","2020-11-05","КИО","-","норматив              не установлен"]
[2,35767,"пл.Беллинсгаузена, уч.2",336.17,"-","-","-","-","2021-04-23","КИО","-","норматив              не установлен"]
[3,35768,"пл.Беллинсгаузена, уч.3",456.28,"-","-","-","-","2021-04-23","КИО","-","норматив              не установлен"]
["II. Торговые объекты, обеспечивающие проведение универсальных и специализированных ярмарок"]
[{"$nulls":6},"Павильоны"]
[1,32806,"Морская наб. (у д.14, \nлитера Б по ул. Кораблестроителей)","485,97","-","-","01/НТО-06202(А)\nот 09.04.2021 до 08.04.2024","относится к субъектам МиСП","2017-11-08","КИО","на срок,                     не превышающий три года","норматив              не установлен","Перенесен \nв раздел I \n\"В сфере мелкорозничной торговли. Павильоны\" \nчасти 2 Схемы"]
[]
["Раздел: Выборгский район Санкт-Петербурга"]
[]
["I. Торговые объекты, обеспечивающие проведение ярмарок выходного дня и региональных ярмарок"]
["Павильоны1"]
[1,36646,"пр. Художников, д. 11-13","20,82","-","-","-","-","2017-03-23","КИО","-","норматив              не установлен"]
[2,32389,"пр. Луначарского, уч. 193\n(д.76)","64,87","-","-","-","-","-","-","-","-","Исключен"]
[3,32393,"ул.Хошимина, уч.144 (Просвещения пр.,15)","60,15","-","-","-","-","-","-","-","-","Исключен"]
["Киоски"]
[1,35421,"ул. Ивана Фомина, уч.71 (сад Ивана Фомина между Сиреневым бульв., ул. Ивана Фомина и пр. Просвещения)",239.35,"-","-","-","-","2020-11-05","КИО","-","норматив              не установлен"]
[]
["Раздел: Калининский район Санкт-Петербурга"]
[]
["I. Торговые объекты, обеспечивающие проведение ярмарок выходного дня и региональных ярмарок"]
["Павильоны1"]
[1,22602,"пр. Луначарского, между д. 84, корп. 1, литера А и д. 84, корп. 3, литера А","250","-","-","-","-","-","-","-","-","Исключен"]
[2,"36647","Гражданский пр., у д. 4","250,66","-","-","-","-","2015-07-01","КИО","-","норматив              не установлен"]
[3,"36648","Гражданский пр., д. 121/100",294.7,"-","-","-","-","2015-12-18","КИО","-","норматив              не установлен"]
[4,"36649","Гражданский пр., у д. 43, корп. 1, литера А",114.83,"-","-","-","-","2016-11-16","КИО","-","норматив              не установлен","Перенесен в подраздел  \"Торговые объекты, обеспечивающие проведение ярмарок выходного дня и региональных ярмарок. Киоски\""]
[5,"28810","пр. Луначарского, у д. 78, корп. 1",250.5,"-","-","-","-","-","-","-","-","Исключен"]
[6,"31186","Гражданский пр., северо-восточнее д. 84, литера А",234.4,"-","-","-","-","-","-","-","-","Исключен"]
[7,36650,"пр. Просвещения (юго-восточнее д. 86, корп. 1, литера А по пр. Просвещения)","380,12","-","-","-","-","2016-11-16","КИО","-","норматив              не установлен","Перенесен в подраздел  \"Торговые объекты, обеспечивающие проведение ярмарок выходного дня и региональных ярмарок. Киоски\""]
[8,36651,"ул. Политехническая, \nу д. 17","96,24","-","-","-","-","2016-11-16","КИО","-","норматив              не установлен","Перенесен в подраздел  \"Торговые объекты, обеспечивающие проведение ярмарок выходного дня и региональных ярмарок. Киоски\""]
[9,31635,"пр. Науки, уч. 14 (севернее д. 19, корп. 1, литера А по пр. Науки)","49,96","-","-","-","-","-","-","-","-","Исключен"]
[10,37050,"пр.Науки, уч.1 (у д.41, корп.2 , литера Б \nпо Гражданскому пр.)","261,01","-","-","-","-","2022-09-29","КИО","-","норматив              не установлен","Перенесен в подраздел  \"Торговые объекты, обеспечивающие проведение ярмарок выходного дня и региональных ярмарок. Киоски\""]
["Киоски"]
[1,37005,"Гражданский пр., у д.43, корп.1, литера А",230.84,"-","-","-","-","2022-09-29","КИО","-","норматив              не установлен","Перенесен \nиз подраздела  \"Торговые объекты, обеспечивающие проведение ярмарок выходного дня \nи региональных ярмарок. Павильоны\""]
[2,37114,"Политехническая ул., у д.17",217.63,"-","-","-","-","2022-09-29","КИО","-","норматив              не установлен","Перенесен \nиз подраздела  \"Торговые объекты, обеспечивающие проведение ярмарок выходного дня \nи региональных ярмарок. Павильоны\""]
[3,37055,"Политехническая ул., уч.58 (у д.17, корп.1, литера А)",118.86,"-","-","-","-","2022-09-29","КИО","-","норматив              не установлен"]
[4,37124,"пр.Просвещения\n(юго-восточнее д.86, \nкорп.1, литера А \nпо пр.Просвещения)",381.01,"-","-","-","-","2022-11-07","КИО","-","норматив              не установлен","Перенесен \nиз подраздела  \"Торговые объекты, обеспечивающие проведение ярмарок выходного дня \nи региональных ярмарок. Павильоны\""]
[5,37113,"пр.Науки, уч.1 (у д.41, корп.2 , литера Б \nпо Гражданскому пр.)",165.13,"-","-","-","-","2022-11-07","КИО","-","норматив              не установлен","Перенесен \nиз подраздела  \"Торговые объекты, обеспечивающие проведение ярмарок выходного дня \nи региональных ярмарок. Павильоны\""]
["II. Торговые объекты, обеспечивающие проведение универсальных и специализированных ярмарок"]
["Палатки"]
[1,22351,"пр. Непокоренных, у д. 2","24,19","-","-","-","-","-","-","-","-","Исключен"]
[2,"22352","пр. Непокоренных, у д. 2","39,31","-","-","-","-","-","-","-","-","Исключен"]
[]
["Раздел: Кировский район Санкт-Петербурга"]
[]
["I. Торговые объекты, обеспечивающие проведение ярмарок выходного дня и региональных ярмарок"]
["Павильоны1"]
[1,33103,"ул. Маршала Казакова, д. 1",498,"-","-","-","-","-","-","-","-","Исключен"]
[2,33102,"пр.Стачек, уч.45\n(у д.105, корп.1)",350.03,"-","-","-","-","-","-","-","-","Исключен"]
[3,36652,"ул. Генерала Симоняка,                                       у д. 9 (западнее д.9, \nлитера А)",500.95,"-","-","-","-","2018-02-07","КИО","-","норматив              не установлен"]
["Палатки"]
[1,35330,"пр.Ветеранов, уч.183\n(северо-восточнее д.38/1, литера А)",192.5,"-","-","-","-","2020-11-05","КИО","-","норматив              не установлен"]
[2,"35331","пр.Ветеранов, уч.182 \n(северо-восточнее д.38/1, литера А)",130.55000000000001,"-","-","-","-","2020-11-05","КИО","-","норматив              не установлен"]
[]
["Раздел: Красногвардейский район Санкт-Петербурга"]
[]
["I. Торговые объекты, обеспечивающие проведение ярмарок выходного дня и региональных ярмарок"]
["Павильоны1"]
[1,"36653","Ириновский пр., уч. 67 (западнее д. 10, литера А по Ириновскому пр.)","602,94","-","-","-","-","2015-07-01","КИО","-","норматив              не установлен"]
[2,"36654","ул. Хасанская, уч. 2 (восточнее д. 15)","483,83","78:11:0615001:6","-","постоянное (бессрочное) пользование","-","2015-12-18","КИО","-","норматив              не установлен"]
[3,"36655","ул. Хасанская, уч. 1 (севернее д. 15) ","418,3","78:11:0615001:6","-","постоянное (бессрочное) пользование","-","2015-12-18","КИО","-","норматив              не установлен"]
[4,"36656","ул. Хасанская, уч. 6 (восточнее д. 15)","236,91","78:11:0615001:6","-","постоянное (бессрочное) пользование","-","2015-12-18","КИО","-","норматив              не установлен"]
[5,"36657","ул. Хасанская, уч. 3 (восточнее д. 15)","491,76","78:11:0615001:6","-","постоянное (бессрочное) пользование","-","2015-12-18","КИО","-","норматив              не установлен"]
[6,"36658","ул. Хасанская, уч. 5 (восточнее д. 15)","457,97","78:11:0615001:6","-","постоянное (бессрочное) пользование","-","2015-12-18","КИО","-","норматив              не установлен"]
[7,"36659","ул. Хасанская, уч. 4 (восточнее д. 15)","434,59","78:11:0615001:6","-","постоянное (бессрочное) пользование","-","2015-12-18","КИО","-","норматив              не установлен"]
[8,32146,"Ржевская пл., уч.12 (западнее д.1, литера А \nпо Ржевской пл.)","236,89","-","-","-","-","2017-03-23","КИО","-","норматив              не установлен","Перенесен в подраздел  \"Торговые объекты, обеспечивающие проведение ярмарок выходного дня и региональных ярмарок. Палатки\""]
[9,32147,"Ржевская пл., уч.13, (западнее д.1, литера А \nпо Ржевской пл.)","100,36","-","-","-","-","2017-03-23","КИО","-","норматив              не установлен","Перенесен в подраздел  \"Торговые объекты, обеспечивающие проведение ярмарок выходного дня и региональных ярмарок. Палатки\""]
["Киоски"]
[1,35065,"Индустриальный пр., уч.131 (воточнее д.24, литера А)",170.14,"-","-","-","-","2020-11-05","КИО","-","норматив              не установлен"]
["Палатки"]
[1,35366,"пр.Энтузиастов, уч.62\n(юго-западнее д.54, корп.2, литера А)",215.76,"-","-","-","-","2020-11-05","КИО","-","норматив              не установлен"]
[2,36538,"Ржевская пл., уч.13 (западнее д.1, литера А \nпо Ржевской пл.)",106.27,"-","-","-","-","2022-04-22","КИО","-","норматив              не установлен","Перенесен из подраздела  \"Торговые объекты, обеспечивающие проведение ярмарок выходного дня и региональных ярмарок. Павильоны\""]
[3,36539,"Ржевская пл., уч.12 (западнее д.1, литера А \nпо Ржевской пл.)",241.3,"-","-","-","-","2022-04-22","КИО","-","норматив              не установлен","Перенесен из подраздела  \"Торговые объекты, обеспечивающие проведение ярмарок выходного дня и региональных ярмарок. Павильоны\""]
[]
["Раздел: Красносельский район Санкт-Петербурга"]
[]
["I. Торговые объекты, обеспечивающие проведение ярмарок выходного дня и региональных ярмарок"]
["Павильоны1"]
[1,19959,"г. Красное Село, \nул. Свободы, уч. 26 (юго-восточнее д. 17, литера А)","500","-","-","-","-","-","-","-","-","Исключен"]
[2,"36660","г. Красное Село, \nп. Можайский, пр. Двадцать Пятого Октября, уч. 14 (севернее д. 4, корп. 2, литера А)","246,41","-","-","-","-","2015-02-09","КИО\n","-","норматив              не установлен"]
[3,"32795                             ","п. Торики, ул. Политрука Пасечника, уч. 15 (южнее \nд. 15, корп. 1, литера А)","239,94","-","-","-","-","2015-02-09","КИО\n","-","норматив              не установлен","Перенесен \nв раздел II"]
[4,21093,"ул. Маршала Захарова, уч. 142 (севернее д. 21, лит. А)","121,27","-","-","-","-","-","-","-","-","Исключен"]
[5,"36661","п.Володарский, пр. Ленина,      \nу д. 1","132,75","-","-","-","-","2018-09-05","КИО\n","-","норматив              не установлен"]
[6,"35326","ул.Лётчика Лихолетова, уч.1 (севернее д.76, корп.13,\nлитера А по Петергофскому шоссе)","494,04","-","-","-","-","2020-11-05","КИО\n","-","норматив              не установлен"]
["Палатки"]
[1,"36942","пр.Ветеранов, уч.200\n(юго-восточнее д.141, корп.1, литера А)",7.21,"-","-","-","-","2022-08-17","КИО\n","-","норматив              не установлен"]
[2,37481,"Ленинский пр., уч.227 (северо-восточнее д.117, корп.1, литера А)",6,"-","-","-","-","2023-07-03","КИО\n","-","норматив              не установлен"]
[3,36944,"ул.Адмирала Трибуца, уч. 2 (д.6, корп.1, стр.6)",6.52,"-","-","-","-","2022-08-17","КИО\n","-","норматив              не установлен"]
[4,37480,"пр.Ветеранов, уч.206 (северо-восточнее д.130, литера А)",6,"-","-","-","-","2023-07-03","КИО\n","-","норматив              не установлен"]
[5,"36977","ул.Партизана Германа, уч.158 (у д.22, корп.4, литера А )",7.16,"-","-","-","-","2022-08-17","КИО\n","-","норматив              не установлен"]
[6,"36978","пр.Ветеранов, уч.202\n(юго-восточнее д.147, литера А)",7.6,"-","-","-","-","2022-08-17","КИО\n","-","норматив              не установлен"]
[7,"36979","ул.Партизана Германа, уч.159 (у д.38/215, \nлитера А)",7.48,"-","-","-","-","2022-08-17","КИО\n","-","норматив              не установлен"]
["II. Торговые объекты, обеспечивающие проведение универсальных и специализированных ярмарок"]
["Павильоны1"]
[1,19957,"ул. Маршала Захарова, уч. 138 (севернее д. 21, литера А)","170","-","-","-","-","2015-02-09","КИО\n","на срок,                     не превышающий три года","норматив              не установлен","Перенесен \nв раздел I \"В сфере мелкорозничной торговли. Павильоны\" части 2 Схемы"]
[2,"32795                             ","п. Торики, ул. Политрука Пасечника, уч. 15 (южнее д. 15, корп. 1, литера А)","239,94","-","-","-","-","-","-","-","-","Исключен"]
[]
["Раздел: Кронштадтский район Санкт-Петербурга"]
[]
["I. Торговые объекты, обеспечивающие проведение ярмарок выходного дня и региональных ярмарок"]
["Палатки"]
[1,34978,"г. Кронштадт, ул. Литке, \nуч. 14 (восточнее д.11/37)",401.63,"-","-","-","-","2020-02-17","КИО","-","норматив              не установлен","Перенесен \nв подраздел\nII \"Торговые объекты, обеспечивающие проведение универсальных и специализированных ярмарок.Киоски\""]
[]
["II. Торговые объекты, обеспечивающие проведение универсальных и специализированных ярмарок"]
["Киоски"]
[1,36215,"г. Кронштадт, ул. Литке, \nуч. 14 (восточнее д.11/37)",401.63,"-","-","-","-","2021-10-22","КИО","-","норматив              не установлен","Перенесен из подраздела\nI \"Торговые объекты, обеспечивающие проведение универсальных и специализированных ярмарок. Палатки\""]
["Раздел: Курортный район Санкт-Петербурга"]
[]
["I. Торговые объекты, обеспечивающие проведение ярмарок выходного дня и региональных ярмарок"]
["Павильоны1"]
[1,"32993                   ","г. Сестрорецк, \nДубковское ш., уч. 23 (восточнее д. 15, литера А по ул. Токарева)",200,"-","-","-","-","-","-","-","-","Исключен"]
["Палатки"]
[1,36876,"пос.Репино, \nПриморское шоссе, \nуч.26 (южнее д.430, \nлитера А)",15.06,"-","-","-","-","2022-07-21","КИО","-","норматив              не установлен"]
["Раздел: Московский район Санкт-Петербурга"]
[]
["I. Торговые объекты, обеспечивающие проведение ярмарок выходного дня и региональных ярмарок"]
["Павильоны1"]
[1,23416,"Взлетная ул., уч. 108 (западнее д. 7, корп. 1, литера А)","500","-","-","-","-","-","-","-","-","Исключен"]
[2,"36662","ул. Типанова, уч. 293 (севернее д. 42, литера А по пр. Космонавтов)","210,24","-","-","-","-","2016-05-17","КИО","-","норматив              не установлен"]
[3,"32331","ул.Типанова, уч.300, (восточнее сооружения 2, литера А \nпо Московскому пр.)","500","-","-","-","-","2017-05-12","КИО","-","норматив              не установлен","Перенесен в раздел\nII \"Торговые объекты, обеспечивающие проведение универсальных и специализированных ярмарок\""]
[4,"36663","ул. Типанова, уч. 301 (юго-западнее д. 212, литера А \nпо Московскому пр.)","499,69","-","-","-","-","2017-07-10","КИО","-","норматив              не установлен"]
[5,"34799","ул. Решетникова, уч.5\n(д. 12)","195,91","-","-","-","-","2020-02-17","КИО","-","норматив              не установлен"]
["Киоски"]
[1,35530,"ул.Типанова, уч.25\n(у д.5, литера А)",197.71,"-","-","-","-","2020-11-27","КИО","-","норматив              не установлен","Перенесен в раздел\nII \"Торговые объекты, обеспечивающие проведение универсальных и специализированных ярмарок\""]
[2,36136,"ул.Типанова, уч.28\n(северо-восточнее пересечения  \nМосковского пр. \nи ул.Типанова)",150.09,"-","-","-","-","2021-09-23","КИО","-","норматив              не установлен"]
[3,37099,"ул.Типанова, уч.27\n(юго-западнее пересечения ул.Типанова и Демонстрационного проезда)",152.28,"-","-","-","-","2021-09-23","КИО","-","норматив              не установлен"]
[4,36209,"Звёздная ул., д.5, литера А",139.05000000000001,"-","-","-","-","-","-","-","-","Исключен"]
[5,36322,"ул.Типанова, уч.30 (восточнее пересечения Московского пр. \nи ул. Типанова.)",171.59,"-","-","-","-","2021-12-10","КИО","-","норматив              не установлен"]
[6,36324,"ул.Типанова, уч.29 (западнее д.4, литера А)",209.61,"-","-","-","-","2021-12-10","КИО","-","норматив              не установлен"]
["Палатки"]
[1,36948,"ул.Ленсовета, уч.3\n(западнее д.88, литера А \nпо ул.Звездной)",6.47,"-","-","-","-","2022-08-17","КИО","-","норматив              не установлен"]
["II. Торговые объекты, обеспечивающие проведение универсальных и специализированных ярмарок"]
["Киоски"]
[1,"36111","ул.Типанова (напротив сквера Северная роща)",499.75,"-","-","-","-","2021-08-23","КИО","-","норматив              не установлен","Перенесен из раздела I \"Торговые объекты, обеспечивающие проведение ярмарок выходного дня и региональных ярмарок. Павильоны\""]
[2,"36114","ул.Типанова, д.5, литера А",197.37,"-","-","-","-","2021-08-23","КИО","-","норматив              не установлен","Перенесен из раздела I \"Торговые объекты, обеспечивающие проведение ярмарок выходного дня и региональных ярмарок. Павильоны\""]
[]
["Раздел: Невский район Санкт-Петербурга"]
["I. Торговые объекты, обеспечивающие проведение ярмарок выходного дня и региональных ярмарок"]
["Павильоны1"]
[1,"30450","пр. Солидарности, уч. 28 (восточнее д. 5, литера А)",30," 78:12:0006324:1025","-","-","-","-","-","-","-","Исключен"]
["Палатки"]
[1,"20478","Прибрежная ул., уч. 27 (северо-восточнее д. 20, литера А)","331,97","-","-","-","-","-","-","-","-","Исключен"]
[2,20475,"ул. Коллонтай, уч. 57 (юго-западнее д. 20, литера А)","524,98","-","-","-","-","2015-07-01","КИО","-","норматив              не установлен","Перенесен \nв подраздел \n\"Киоски\""]
[3,"35529","Караваевская ул., уч.53, (южнее д.24, корп.1, \nлитера А)","360,59","-","-","-","-","2020-11-05","КИО","-","норматив              не установлен"]
[4,"35990","Прибрежная ул., уч.28, (севернее д. 18, литера А)","88,8","-","-","-","-","2021-07-19","КИО","-","норматив              не установлен"]
[5,"35991","Прибрежная ул., уч.27, \n(у д.20, литера А)","167,89","-","-","-","-","2021-07-19","КИО","-","норматив              не установлен"]
[6,"35993","ул.Коллонтай, уч.66, (напротив д.21)","165,72","-","-","-","-","2021-07-19","КИО","-","норматив              не установлен"]
[7,"36248","ул.Полярников, уч.9 (севернее д.65, литера А \nпо ул.Бабушкина)","132,81","-","-","-","-","2021-10-22","КИО","-","норматив              не установлен"]
[8,35987,"пр.Большевиков, уч.140\n(у  д.21, литера  Р)",51.17,"-","-","-","-","2021-12-10","КИО","-","норматив              не установлен"]
[9,35988,"пр.Большевиков, уч.141\n(у  д.21, литера Р)",91.91,"-","-","-","-","2021-12-10","КИО","-","норматив              не установлен"]
[10,35989,"пр.Большевиков, уч.139\n(у  д.21, литера Р)",145.78,"-","-","-","-","2021-12-10","КИО","-","норматив              не установлен"]
[11,36343,"ул.Бабушкина, уч.136\n(у д.71/8, литера А)","94,5","-","-","-","-","2022-01-28","КИО","-","норматив              не установлен"]
[12,36344,"ул.Бабушкина, уч.137\n(у д.73, литера А)","112,9","-","-","-","-","2022-01-28","КИО","-","норматив              не установлен"]
[13,"36535","пр.Большевиков, уч.144 (восточнее д.19, литера Ш)","100,92","-","-","-","-","2022-03-22","КИО","-","норматив              не установлен"]
[14,"36537","пр.Пятилеток, уч.35 (севернее д.2, литера А)","90,97","-","-","-","-","2022-03-22","КИО","-","норматив              не установлен"]
[15,"36636","пр.Большевиков, уч.145, (северо-восточнее д.19, литера Ш)","81,62","-","-","-","-","2022-05-27","КИО","-","норматив              не установлен"]
[16,"36637","пр.Пятилеток, уч.36, (севернее д.2, литера А)","110,73","-","-","-","-","2022-05-27","КИО","-","норматив              не установлен"]
[17,"36873","Октябрьская наб., уч.133 (западнее д.114, литера А)","20,20","-","-","-","-","2022-07-21","КИО","-","норматив              не установлен"]
[18,"37224","Народная ул., уч.19\n(юго-западнее д.8, \nлитера Х)","108,79","-","-","-","-","2023-01-10","КИО","-","норматив              не установлен"]
["Киоски"]
[1,35412,"ул.Коллонтай, \nюго-западнее д.20, литера А",510.98,"-","-","-","-","2020-11-05","КИО","-","норматив              не установлен","Перенесен \nиз раздела I \"Торговые объекты, обеспечивающие проведение ярмарок выходного дня \nи региональных ярмарок. Палатки\""]
[2,36664,"ул.Коллонтай, уч.67\n(у д.32, корп.1, литера А)",69.41,"-","-","-","-","2022-05-27","КИО","-","норматив              не установлен"]
["II. Торговые объекты, обеспечивающие проведение универсальных и специализированных ярмарок"]
["Палатки"]
[1,"22270","пр. Большевиков, уч. 247 (северо-восточнее д. 21, литера Р)","30","-","-","-","-","-","-","-","-","Исключен"]
[2,"22271","пр. Большевиков, уч. 248 (восточнее д. 21, литера Р)","30","-","-","-","-","-","-","-","-","Исключен"]
[3,"22274","пр. Большевиков, уч. 251 (юго-восточнее д. 21, литера Р)","30","-","-","-","-","-","-","-","-","Исключен"]
[4,"22272","пр. Большевиков, уч. 249 (юго-восточнее д. 21, литера Р)","30","-","-","-","-","-","-","-","-","Исключен"]
[5,"22275","пр. Большевиков, уч. 252 (восточнее д. 21, литера Р)","30","-","-","-","-","-","-","-","-","Исключен"]
[6,"26140","пр. Большевиков, уч. 307 (юго-восточнее д. 21, литера Р)","30,36","-","-","-","-","-","-","-","-","Исключен"]
[7,"26139","пр. Большевиков, уч. 308 (юго-восточнее д. 21, литера Р)","25,42","-","-","-","-","-","-","-","-","Исключен"]
[]
["Раздел: Петроградский район Санкт-Петербурга"]
[]
["I. Торговые объекты, обеспечивающие проведение ярмарок выходного дня и региональных ярмарок"]
["Киоски"]
[1,35375,"Приморский парк Победы, уч.99 (восточнее д. 2, \nлитера А по Южной аллее)",336.6,"-","-","-","-","2020-07-31","КИО","-","норматив              не установлен"]
[2,35376,"Приморский парк Победы, уч.98 (севернее д. 2, \nлитера А по Южной аллее)",412.23,"-","-","-","-","2020-07-31","КИО","-","норматив              не установлен"]
[3,35377,"Приморский парк Победы, уч.97 (севернее д.2, \nлитера А  по Южной аллее)",409.44,"-","-","-","-","2020-07-31","КИО","-","норматив              не установлен"]
["Палатки"]
[1,37051,"наб.Мартынова, д.94, уч.31 литера Б (северо-западнее д.94, литера Б)",10.32,"-","-","-","-","2022-09-29","КИО","-","норматив              не установлен"]
["Раздел: Петродворцовый район Санкт-Петербурга"]
[]
["I. Торговые объекты, обеспечивающие проведение ярмарок выходного дня и региональных ярмарок"]
["Павильоны1"]
[1,19833,"п. Стрельна, Фронтовая ул., уч. 33 (юго-западнее д. 10, литера А)","500","-","-","-","-","2015-02-09","КИО","-","норматив              не установлен","Перенесен \nв подраздел \"Палатки\"\nраздела I"]
[2,20891,"г. Ломоносов, Красноармейская ул., \nуч. 14 (севернее д. 31, литера А)","400","-","-","-","-","-","-","-","-","Исключен"]
[3,20896,"г. Ломоносов, Красноармейская ул., \nуч. 15 (северо-восточнее д. 31, литера А)","400","-","-","-","-","-","-","-","-","Исключен"]
[4,20912,"г. Ломоносов, Михайловская ул., уч. 9 (юго-западнее д. 18б, литера А)","251,08","-","-","-","-","2015-07-01","КИО","-","норматив              не установлен","Перенесен \nв подраздел \"Палатки\"\nраздела I"]
[5,"33277","г. Петергоф, ул. Морского Десанта, уч. 30 (западнее \nд. 3б, литера А)","500","-","-","-","-","2018-07-05","КИО","-","норматив              не установлен","Перенесен       \n из раздела \nI \"В сфере мелкорозничной торговли. Павильоны\" \nчасти 1 Схемы "]
[6,"33276","г. Петергоф, ул. Морского Десанта, уч. 29 \n(западнее д. 3б, литера А)","500","-","-","-","-","2018-07-05","КИО","-","норматив              не установлен","Перенесен       \n из раздела \nI \"В сфере мелкорозничной торговли. Павильоны\" \nчасти 1 Схемы "]
[7,"34796","г. Ломоносов, ул. Рубакина, уч. 20 (у д.16)","27,08","-","-","-","-","2020-02-17","КИО","-","норматив              не установлен","Перенесен \nв подраздел \"Палатки\"\nраздела I"]
[8,"35485","г. Ломоносов, \nул. Рубакина, уч.21 (у д.16)","18,16","-","-","-","-","2020-11-05","КИО","-","норматив              не установлен","Перенесен \nв подраздел \"Палатки\"\nраздела I"]
[9,"19833","пос.Стрельна, Фронтовая ул., уч.33, (юго-западнее д.10, литера А)","503,24","-","-","-","-","2015-12-17","КИО","-","норматив              не установлен","Перенесен \nв подраздел \"Палатки\"\nраздела I"]
[10,"20912","г.Ломоносов, \nМихайловская ул., уч.9, (юго-западнее д.18б, \nлитера А )","251,08","-","-","-","-","2015-12-17","КИО","-","норматив              не установлен","Перенесен \nв подраздел \"Палатки\"\nраздела I"]
["Палатки"]
[1,"35535","г.Петергоф,Пролётная ул., уч.2 (северо-восточнее д.3, литера А)","487,68","-","-","-","-","2020-11-27","КИО","-","норматив              не установлен"]
[2,"35536","г.Петергоф, Пролётная ул., уч.3 (северо-восточнее д.3, литера А)","452,72","-","-","-","-","2020-11-27","КИО","-","норматив              не установлен"]
[3,"35537","пос.Стрельна, Нижняя дор., уч.30, (напротив д.4,\nкорп. 1 литера А \nпо Орловской ул.)","439,22","-","-","-","-","2020-11-27","КИО","-","норматив              не установлен"]
[4,"35539","пос.Стрельна, Нижняя дор., \nуч.32 (напротив д.11, \nлитера А по Орловской ул.)","436,09","-","-","-","-","2020-11-27","КИО","-","норматив              не установлен"]
[5,35676,"г.Ломоносов, \nул.Рубакина, уч.20 (у д.16)","27,02","-","-","-","-","2021-02-19","КИО","-","норматив              не установлен","Перенесен \nиз подраздела \"Павильоны\"\nраздела I"]
[6,"35678","г.Ломоносов, \nул.Рубакина, у д.16","18,16","-","-","-","-","2021-02-19","КИО","-","норматив              не установлен","Перенесен \nиз подраздела \"Павильоны\"\nраздела I"]
[7,"35679","г.Ломоносов, \nМихайловская улю, уч.17, (юго-западнее д.18б,\n литера А)","252,29","-","-","-","-","2021-02-19","КИО","-","норматив              не установлен","Перенесен \nиз подраздела \"Павильоны\"\nраздела I"]
[8,35680,"п.Стрельна,\nФронтовая ул., уч.33\n(юго-западнее д. 10, \nлитера А)","500,89","-","-","-","-","2021-02-19","КИО","-","норматив              не установлен","Перенесен \nиз подраздела \"Павильоны\"\nраздела I"]
[9,"36879","пос.Стрельна, Нижняя дорога, уч.36\n(южнее д.15, литера Б)","15,09","-","-","-","-","2022-07-21","КИО","-","норматив              не установлен"]
["II. Торговые объекты, обеспечивающие проведение универсальных и специализированных ярмарок"]
["Павильоны1"]
[1,20837,"г. Петергоф, Разводная ул., уч. 55 (северо-восточнее \nд.7, корп. 1, литера А)","500","-","-","-","-","-","-","-","-","Исключен"]
[]
["Раздел: Приморский район Санкт-Петербурга"]
[]
["I. Торговые объекты, обеспечивающие проведение ярмарок выходного дня и региональных ярмарок"]
["Павильоны1"]
[1,"32090                ","Комендантский пр., уч. 1 (северо-западнее д. 16, корп. 1)","500","-","-","-","-","-","-","-","-","Исключен"]
[2,23386,"Байконурская ул., уч. 1 (напротив д. 15 по Байконурской ул.)","5905,39","-","-","-","-","-","-","-","-","Исключен"]
[3,21108,"ул. Савушкина, д. 4","373","-","-","-","-","-","-","-","-","Исключен"]
[4,"29405","Мебельная ул., уч. 1 (севернее пересечения с Туристской ул.)","200","-","-","-","-","-","-","-","-","Исключен"]
[5,"29399","Школьная ул., уч. 58 (юго-восточнее д. 75, корп. 2, литера А)","500,7","-","-","-","-","-","-","-","-","Исключен"]
[6,"30369","ул. Шаврова, уч. 21 (у д. 7, корп. 1)",12,"-","-","-","-","-","-","-","-","Исключен"]
[7,"30370","ул. Оптиков, уч. 52 (западнее д. 52, корп. 1, литера А)",40," 78:34:0415902:3003","-","-","-","2016-05-17","КИО","-","норматив              не установлен","Перенесен \nв раздел I \n\"В сфере мелкорозничной торговли. Павильоны\" \nчасти 2 Схемы"]
[8,33234,"Афонская ул.,                                                   уч. 18, (северенее д. 50                                по Первомайскому пр.)",403.65,"-","-","-","-","2018-07-05","КИО","-","норматив              не установлен"]
["Палатки"]
[1,36665,"Торфяная дор., уч. 32 (восточнее д. 2, корп. 1, лит. А)",31.01,"-","-","-","-","2017-05-12","КИО","-","норматив              не установлен"]
[2,36666,"Торфяная дор., уч. 36 (восточнее д. 2, корп. 1, литера А)",16.09,"-","-","-","-","2017-05-12","КИО","-","норматив              не установлен"]
[3,36553,"Комендантский пр., уч. 43 (юго-восточнее д. 12, корп. 1, литера А)",66.489999999999995,"-","-","-","-","2022-04-22","КИО","-","норматив              не установлен","Перенесен в подраздел  \"Торговые объекты, обеспечивающие проведение ярмарок выходного дня и региональных ярмарок. Киоски\""]
[4,32174,"Комендантский пр., уч. 46 (южнее д. 12, корп. 1, литера А)",30,"-","-","-","-","-","-","-","-","Исключен"]
[5,36552,"Комендантский пр., уч.106 (южнее д.12, корп.1, \nлитера А)",56.69,"-","-","-","-","2022-04-22","КИО","-","норматив              не установлен","Перенесен в подраздел  \"Торговые объекты, обеспечивающие проведение ярмарок выходного дня и региональных ярмарок. Киоски\""]
[6,36882,"Приморское шоссе, уч.47 (севернее д.4, корп.2, литера Ф)",10,"-","-","-","-","2022-07-21","КИО","-","норматив              не установлен"]
[7,36982,"Туристская ул., д.24/42, литера А",76.680000000000007,"-","-","-","-","2022-09-29","КИО","-","норматив              не установлен","Перенесен в подраздел  \"Торговые объекты, обеспечивающие проведение ярмарок выходного дня и региональных ярмарок. Киоски\""]
[8,36983,"Туристская ул., дом 24/42, литера А.",54.6,"-","-","-","-","2022-09-29","КИО","-","норматив              не установлен","Перенесен в подраздел  \"Торговые объекты, обеспечивающие проведение ярмарок выходного дня и региональных ярмарок. Киоски\""]
[9,"37052","Славянская ул., уч.2 (восточнее д.25, литера А)",10.15,"-","-","-","-","2022-09-29","КИО","-","норматив              не установлен"]
["Киоски"]
[1,"36259","Мебельная ул., уч.86\n(юго-восточнее д.16, строение 1 \nпо Туристской ул.)",80.27,"-","-","-","-","2021-11-26","КИО","-","норматив              не установлен"]
[2,"36260","Мебельная ул., уч.87\n(юго-восточнее д.16, строения 2 \nпо Туристкой ул.)",71.13,"-","-","-","-","2021-11-26","КИО","-","норматив              не установлен"]
[3,"37063","Комендантский пр., уч.107, (северо-западнее д.16, \nкорп.1, литера Б)",162.80000000000001,"-","-","-","-","2022-10-24","КИО","-","норматив              не установлен"]
[4,"37064","Коломяжский пр., уч.111, (севернее пересечения \nс Богатырским пр.)",110.48,"-","-","-","-","2022-10-24","КИО","-","норматив              не установлен"]
[5,"37065","Комендантский пр., уч.108, (северо-западнее д.16, корп.1, литера Б)",105.62,"-","-","-","-","2022-10-24","КИО","-","норматив              не установлен"]
[6,37093,"Комендантский пр., уч.106 (южнее д.12, корп.1, \nлитера А)",56.71,"-","-","-","-","2022-11-07","КИО","-","норматив              не установлен","Перенесен из подраздела  \"Торговые объекты, обеспечивающие проведение ярмарок выходного дня и региональных ярмарок. Палатки\""]
[7,37146,"Туристская ул., д.24/42, литера А",76.680000000000007,"-","-","-","-","2022-11-07","КИО","-","норматив              не установлен","Перенесен из подраздела  \"Торговые объекты, обеспечивающие проведение ярмарок выходного дня и региональных ярмарок. Палатки\""]
[8,37147,"Туристская ул., дом 24/42, литера А.",54.6,"-","-","-","-","2022-11-07","КИО","-","норматив              не установлен","Перенесен из подраздела  \"Торговые объекты, обеспечивающие проведение ярмарок выходного дня и региональных ярмарок. Палатки\""]
[9,37094,"Комендантский пр., уч.43 (юго-восточнее д.12, \nкорп.1, литера А)",66.58,"-","-","-","-","2022-11-21","КИО","-","норматив              не установлен","Перенесен из подраздела  \"Торговые объекты, обеспечивающие проведение ярмарок выходного дня и региональных ярмарок. Палатки\""]
[10,37583,"Туристская ул., д.12 (северо-восточнее д.12)",43,"-","-","-","-","2023-09-29","КИО","-","норматив              не установлен"]
[11,"37623","ул.Уточкина, д.4, литера А, уч.51",32,"-","-","-","-","2023-09-29","КИО","-","норматив              не установлен"]
[12,"37624","ул.Уточкина, д.4, литера А, уч.50",70,"-","-","-","-","2023-09-29","КИО","-","норматив              не установлен"]
["II. Торговые объекты, обеспечивающие проведение универсальных и специализированных ярмарок"]
["Палатки"]
[1,"26305","пр. Сизова, уч. 1 \n(северо-западнее д. 26, литера А по пр. Сизова)","25,9","-","-","-","-","-","-","-","-","Исключен"]
[]
["Раздел: Пушкинский район Санкт-Петербурга"]
[]
["I. Торговые объекты, обеспечивающие проведение ярмарок выходного дня и региональных ярмарок"]
["Палатки"]
[1,"36667","п. Шушары, Славянка, Ростовская ул., \nнапротив д. 12","12,05","-","-","-","-","2017-05-12","КИО","-","норматив              не установлен"]
[2,"36668","п. Шушары, Славянка, Ростовская ул., \nнапротив д. 12","12,02","-","-","-","-","2017-05-12","КИО","-","норматив              не установлен"]
[3,"36669","п. Шушары, Славянка, Ростовская ул., \nнапротив д. 25, корп. 1, литера А","29,43","-","-","-","-","2017-05-12","КИО","-","норматив              не установлен"]
[4,"36670","п. Шушары, Славянка, Ростовская ул., \nнапротив д. 25, корп. 1, литера А","30,09","-","-","-","-","2017-05-12","КИО","-","норматив              не установлен"]
[5,"36671","п. Шушары, Славянка, Ростовская ул., напротив д. 25, корп. 1, литера А","30,09","-","-","-","-","2017-05-12","КИО","-","норматив              не установлен"]
[6,"36672","п. Шушары, Славянка, Ростовская ул., \nнапротив д. 25, корп. 1, литера А","30,17","-","-","-","-","2017-05-12","КИО","-","норматив              не установлен"]
[7,"36673","п. Шушары, Славянка, Ростовская ул., \nнапротив д. 25, корп. 1, литера А","30,21","-","-","-","-","2017-05-12","КИО","-","норматив              не установлен"]
[8,"36674","п. Шушары, Славянка, Ростовская ул., напротив д. 25, корп. 1, литера А","30,1","-","-","-","-","2017-05-12","КИО","-","норматив              не установлен"]
[9,"36675","п. Шушары, Славянка, Ростовская ул., напротив д. 25, корп. 1, литера А",10.130000000000001,"-","-","-","-","2017-05-12","КИО","-","норматив              не установлен"]
[10,"36676","п. Шушары, Славянка, Ростовская ул., \nнапротив д. 25, корп. 1, литера А",10.09,"-","-","-","-","2017-05-12","КИО","-","норматив              не установлен"]
[11,"36677","п. Шушары, Славянка, Ростовская ул., напротив д. 25, корп. 1, литера А",15.3,"-","-","-","-","2017-05-12","КИО","-","норматив              не установлен"]
[12,"36678","п. Шушары, Ленсоветовский, \nнапротив д. 8",10.31,"-","-","-","-","2017-05-12","КИО","-","норматив              не установлен"]
[13,"36679","п. Шушары, Ленсоветовский, \nнапротив д. 8",10.01,"-","-","-","-","2017-05-12","КИО","-","норматив              не установлен"]
[14,"36680","п. Шушары, Ленсоветовский, \nнапротив д. 8",12.13,"-","-","-","-","2017-05-12","КИО","-","норматив              не установлен"]
[15,"36681","п. Шушары, Славянка, Ростовская ул., \nнапротив д. 12",10.08,"-","-","-","-","2017-05-12","КИО","-","норматив              не установлен"]
[16,"36682","п. Шушары, Славянка, Ростовская ул., \nнапротив д. 12",10.050000000000001,"-","-","-","-","2017-05-12","КИО","-","норматив              не установлен"]
[17,"36683","п. Шушары, Славянка, Ростовская ул., \nнапротив д. 12",12.15,"-","-","-","-","2017-05-12","КИО","-","норматив              не установлен"]
[18,"36684","п. Шушары, Славянка, Ростовская ул., \nнапротив д. 12",15.06,"-","-","-","-","2017-05-12","КИО","-","норматив              не установлен"]
[19,"36685","п. Шушары, Славянка, Ростовская ул., \nнапротив д. 12",10.07,"-","-","-","-","2017-05-12","КИО","-","норматив              не установлен"]
[20,"36686","п. Шушары, Славянка, Ростовская ул., \nнапротив д. 12",15.02,"-","-","-","-","2017-05-12","КИО","-","норматив              не установлен"]
[21,"36687","п. Шушары, Славянка, Ростовская ул., \nнапротив д. 12",12.47,"-","-","-","-","2017-05-12","КИО","-","норматив              не установлен"]
[22,"36688","п. Шушары, Славянка, Ростовская ул., \nнапротив д. 12",15,"-","-","-","-","2017-05-12","КИО","-","норматив              не установлен"]
[23,"36689","п. Шушары, Славянка, Ростовская ул., напротив д. 12",12.08,"-","-","-","-","2017-05-12","КИО","-","норматив              не установлен"]
[24,"36690","п. Шушары, Славянка, Ростовская ул., \nнапротив д. 12",10.18,"-","-","-","-","2017-05-12","КИО","-","норматив              не установлен"]
[25,"36691","п. Шушары, Славянка, Ростовская ул., \nнапротив д. 12",11.94,"-","-","-","-","2017-05-12","КИО","-","норматив              не установлен"]
[26,"36692","п. Шушары, Славянка, Ростовская ул., напротив д. 12",15,"-","-","-","-","2017-05-12","КИО","-","норматив              не установлен"]
[27,"36693","п. Шушары, Славянка, Ростовская ул., \nнапротив д. 12",20.3,"-","-","-","-","2017-05-12","КИО","-","норматив              не установлен"]
[28,"36694","п. Шушары, Славянка, Ростовская ул., \nнапротив д. 12",10.130000000000001,"-","-","-","-","2017-05-12","КИО","-","норматив              не установлен"]
[29,"36695","п. Шушары, Славянка, Ростовская ул., \nнапротив д. 12",12.29,"-","-","-","-","2018-10-31","КИО","-","норматив              не установлен"]
[30,"36696","п. Шушары, Славянка, Ростовская ул., \nнапротив д. 12",10.31,"-","-","-","-","2018-10-31","КИО","-","норматив              не установлен"]
[31,"36697","п. Шушары, Славянка, Ростовская ул., \nнапротив д. 12",10.039999999999999,"-","-","-","-","2018-10-31","КИО","-","норматив              не установлен"]
[32,"36698","п. Шушары, Славянка, Ростовская ул., \nнапротив д. 12",15.25,"-","-","-","-","2018-10-31","КИО","-","норматив              не установлен"]
[33,"36699","п. Шушары, Славянка, Ростовская ул., \nнапротив д. 12",10.1,"-","-","-","-","2018-10-31","КИО","-","норматив              не установлен"]
[34,"36700","п. Шушары, Славянка, Ростовская ул., напротив д. 12",12.16,"-","-","-","-","2018-10-31","КИО","-","норматив              не установлен"]
[35,"36701","п. Шушары, Славянка, Ростовская ул., \nнапротив д. 12",10.130000000000001,"-","-","-","-","2018-10-31","КИО","-","норматив              не установлен"]
[36,"36702","п. Шушары, Славянка, Ростовская ул., \nнапротив д. 12",15.15,"-","-","-","-","2018-10-31","КИО","-","норматив              не установлен"]
[37,"36703","п. Шушары, Славянка, Ростовская ул., \nнапротив д. 12",12.45,"-","-","-","-","2018-10-31","КИО","-","норматив              не установлен"]
[38,34817,"г. Пушкин, Магазейная ул., уч.12 (в сквере \nна Магазейной ул., у д.42)",88.4,"-","-","-","-","2020-02-17","КИО","-","норматив              не установлен"]
[39,34818,"г. Пушкин, Магазейная ул., уч.13 (в сквере \nна Магазейной ул., у д.42)",85.2,"-","-","-","-","2020-02-17","КИО","-","норматив              не установлен"]
[40,34819,"г. Пушкин, Магазейная ул., уч.18 (в сквере \nна Магазейной ул., у д.42)",109.4,"-","-","-","-","2020-02-17","КИО","-","норматив              не установлен"]
[41,34820,"г. Пушкин, Магазейная ул., уч.17 (в сквере \nна Магазейной ул., у д.42)",101.8,"-","-","-","-","2020-02-17","КИО","-","норматив              не установлен"]
[42,34821,"г. Пушкин, Магазейная ул., уч.16 (в сквере \nна Магазейной ул., у д.42)",67.5,"-","-","-","-","2020-02-17","КИО","-","норматив              не установлен"]
[43,34822,"г. Пушкин, Магазейная ул., уч.15 (в сквере \nна Магазейной ул., у д.42)",74.900000000000006,"-","-","-","-","2020-02-17","КИО","-","норматив              не установлен"]
[44,34823,"г. Пушкин, Магазейная ул., уч.14 (у д.42, литера А)",28.5,"-","-","-","-","2020-02-17","КИО","-","норматив              не установлен"]
[45,34827,"пос. Шушары, \nПервомайская ул., уч.1 (севернее д. 48, литера А \nпо Пушкинской ул.)",117.9,"-","-","-","-","2020-02-17","КИО","-","норматив              не установлен"]
[46,35110,"г.Пушкин, \nБуферный парк, уч.12",379.1,"-","-","-","-","2020-11-05","КИО","-","норматив              не установлен"]
[47,35111,"г.Пушкин, \nБуферный парк, уч.11",100.1,"-","-","-","-","2020-11-05","КИО","-","норматив              не установлен"]
[48,"35112","г.Пушкин, \nБуферный парк, уч.10",289.55,"-","-","-","-","2020-11-05","КИО","-","норматив              не установлен"]
[49,"35113","г.Пушкин, \nБуферный парк, уч.9",70.33,"-","-","-","-","2020-11-05","КИО","-","норматив              не установлен"]
[50,"35114","г.Пушкин, \nБуферный парк, уч.8",75.41,"-","-","-","-","2020-11-05","КИО","-","норматив              не установлен"]
[51,"35115","г.Пушкин, \nБуферный парк, уч.7",486.08,"-","-","-","-","2020-11-05","КИО","-","норматив              не установлен"]
[52,"35116","г.Пушкин, \nБуферный парк, уч.6",196.38,"-","-","-","-","2020-11-05","КИО","-","норматив              не установлен"]
[53,"35117","г.Пушкин, \nБуферный парк, уч.5",183.84,"-","-","-","-","2020-11-05","КИО","-","норматив              не установлен"]
[54,"35118","г.Пушкин, \nБуферный парк, уч.4",12.72,"-","-","-","-","2020-11-05","КИО","-","норматив              не установлен"]
[55,"35119","г.Пушкин, \nБуферный парк, уч.3",7.22,"-","-","-","-","2020-11-05","КИО","-","норматив              не установлен"]
[56,"35327","пос.Шушары, \nПервомайская ул., уч.162 (южнее д.1, литера А)",431.07,"-","-","-","-","2020-11-05","КИО","-","норматив              не установлен"]
[57,"35328","пос.Шушары, \nПервомайская ул., уч.163 (южнее д.3, литера А)",47.46,"-","-","-","-","2020-11-05","КИО","-","норматив              не установлен"]
[58,"35329","пос.Шушары, \nПервомайская ул., уч.161 (южнее д.3 литера А)",138.15,"-","-","-","-","2020-11-05","КИО","-","норматив              не установлен"]
[59,"36531","г.Пушкин, Соборный сквер, уч.15 (северо-восточнее д.25, литера А \nпо Московской ул.)",499.69,"-","-","-","-","2022-04-22","КИО","-","норматив              не установлен"]
[60,"36532","г.Пушкин, Соборный сквер, уч.16 (между Пушкинской, Оранжерейной, Московской и Леонтьевской ул.)",497.88,"-","-","-","-","2022-04-22","КИО","-","норматив              не установлен"]
[61,"36533","г.Павловск, Берёзовая ул., уч.27 (южнее д.6 литера А)",116.79,"-","-","-","-","2022-04-22","КИО","-","норматив              не установлен"]
[62,"36628","г.Павловск, сад Миранда, уч.1",50.47,"-","-","-","-","2022-04-22","КИО","-","норматив              не установлен"]
["II. Торговые объекты, обеспечивающие проведение универсальных и специализированных ярмарок"]
["Павильоны1"]
[1,20084,"г. Пушкин, Детскосельский бульв., уч. 1 (севернее д. 9)","500","-","-","-","-","-","-","-","-","Исключен"]
[2,20085,"г. Пушкин, Детскосельский бульв., севернее д. 9","500","-","-","-","-","-","-","-","-","Исключен"]
[3,22575,"п. Шушары, Первомайская ул., (юго-восточнее д. 1, литера А по Первомайской ул.)","115","-","-","-","-","-","-","-","-","Исключен"]
[4,"28960","г. Пушкин, Оранжерейная ул., (северо-восточнее д. 73, литера А по Оранжерейной ул.)",502.5,"-","-","-","-","-","-","-","-","Исключен"]
[5,"28961","г. Пушкин, Оранжерейная ул., (северо-восточнее д. 73, литера А по Оранжерейной ул.)",503.3,"-","-","-","-","-","-","-","-","Исключен"]
[6,"28962","г. Пушкин, Оранжерейная ул., (северо-восточнее д. 73, литера А по Оранжерейной ул.)",497.8,"-","-","-","-","-","-","-","-","Исключен"]
[7,"28963","г. Пушкин, Оранжерейная ул., (северо-восточнее д. 73, литера А по Оранжерейной ул.)",498.9,"-","-","-","-","-","-","-","-","Исключен"]
[8,"28964","г. Пушкин, Оранжерейная ул., (северо-восточнее д. 73, литера А по Оранжерейной ул.)",403.3,"-","-","-","-","-","-","-","-","Исключен"]
["Палатки"]
[1,35285,"г.Пушкин, \nЛенинградская ул., уч.75, (д.47)",108.38,"-","-","-","-","-","-","-","-","Исключен"]
[]
["Раздел: Фрунзенский район Санкт-Петербурга"]
[]
["I. Торговые объекты, обеспечивающие проведение ярмарок выходного дня и региональных ярмарок"]
["Павильоны1"]
[1,"36704","Бухарестская ул., у д. 89","501,37","78:13:0007441:7","-","-","-","2015-07-01","КИО","-","норматив              не установлен"]
[2,"36705","Бухарестская ул., д. 89","501,68","-","-","-","-","2015-07-01","КИО","-","норматив              не установлен"]
[3,"36706","Бухарестская ул., д. 89","503,08","-","-","-","-","2015-07-01","КИО","-","норматив              не установлен"]
[4,"36707","Бухарестская ул., д. 89","527,52","-","-","-","-","2015-07-01","КИО","-","норматив              не установлен"]
[5,"36708","Бухарестская ул., д. 89","526,93","-","-","-","-","2015-07-01","КИО","-","норматив              не установлен"]
[6,"36709","Будапештская ул., уч. 267 (северо-восточнее д. 49, корп. 1, литера А по Будапештской ул.)","137,44","-","-","-","-","2015-07-01","КИО","-","норматив              не установлен"]
[7,"36710","Будапештская ул., уч. 266 (юго-восточнее д. 49, корп. 1, литера А по Будапештской ул.)","108,75","-","-","-","-","2015-07-01","КИО","-","норматив              не установлен"]
["Палатки"]
[1,"36711","Будапештская ул., уч. 359 (восточнее д. 11)","32,21","-","-","-","-","2016-07-01","КИО","-","норматив              не установлен"]
[2,"29831","Будапештская ул., уч. 360 (восточнее д. 11)","37,5","-","-","-","-","-","-","-","-","Исключен"]
[3,"36247","Бухарестская ул., уч.138 (южнее д.144, литера А)","144,25","-","-","-","-","2021-10-22","КИО","-","норматив              не установлен"]
["Киоски"]
[1,35423,"напротив д.118 \nпо Бухарестской ул. \n(в ЗНОП № 17016)",378.16,"-","-","-","-","2020-11-05","КИО","-","норматив              не установлен"]
[2,35471,"наб.Обводного канала, \nд.36, литера Б",260.64999999999998,"-","-","-","-","2020-11-05","КИО","-","норматив              не установлен"]
["II. Торговые объекты, обеспечивающие проведение универсальных и специализированных ярмарок"]
["Палатки"]
[1,22261,"ул. Димитрова, уч. 94 (юго-западнее пересечения с Купчинской ул.)","30","-","-","-","-","-","-","-","-","Исключен"]
[2,22259,"ул. Димитрова, уч. 95 (юго-западнее пересечения с Купчинской ул.)","30","-","-","-","-","-","-","-","-","Исключен"]
[3,22260,"ул. Димитрова, уч. 96 (юго-западнее пересечения с Купчинской ул.)","30","-","-","-","-","-","-","-","-","Исключен"]
[]
["Раздел: Центральный район Санкт-Петербурга"]
[]
["I. Торговые объекты, обеспечивающие проведение ярмарок выходного дня и региональных ярмарок"]
["Павильоны1"]
[1,34273,"Кленовая ул., уч. 4","294,8","-","-","-","-","2019-06-19","КИО","-","норматив              не установлен"]
[2,34274,"Кленовая ул., уч. 3","316,3","-","-","-","-","2019-06-19","КИО","-","норматив              не установлен"]
[3,34275,"Кленовая ул., уч. 9","493,9","-","-","-","-","2019-06-19","КИО","-","норматив              не установлен","Перенесен\nв раздел \nI \"Торговые объекты, обеспечивающие проведение ярмарок выходного дня и региональных ярмарок. Транспортные средства, специализированные для организации общественного питания\""]
[4,34276,"Кленовая ул., уч. 8","321,5","-","-","-","-","2019-06-19","КИО","-","норматив              не установлен","Перенесен\nв раздел \nI \"Торговые объекты, обеспечивающие проведение ярмарок выходного дня и региональных ярмарок. Транспортные средства, специализированные для организации общественного питания\""]
[5,34277,"Кленовая ул., уч. 7","294,1","-","-","-","-","2019-06-19","КИО","-","норматив              не установлен","Перенесен\nв раздел \nI \"Торговые объекты, обеспечивающие проведение ярмарок выходного дня и региональных ярмарок. Транспортные средства, специализированные для организации общественного питания\""]
[6,34278,"Кленовая ул., уч. 6","273,6","-","-","-","-","2019-06-19","КИО","-","норматив              не установлен","Перенесен\nв раздел \nI \"Торговые объекты, обеспечивающие проведение ярмарок выходного дня и региональных ярмарок. Транспортные средства, специализированные для организации общественного питания\""]
[7,34279,"Кленовая ул., уч. 5","274,1","-","-","-","-","2019-06-19","КИО","-","норматив              не установлен","Перенесен\nв раздел \nI \"Торговые объекты, обеспечивающие проведение ярмарок выходного дня и региональных ярмарок. Транспортные средства, специализированные для организации общественного питания\""]
[8,34260,"Манежная пл. уч. 8",497,"-","-","-","-","2019-08-29","КИО","-","норматив              не установлен"]
[9,34261,"Манежная пл. уч. 9",498.5,{"$f":"E418","v":"-"},{"$f":"F418","v":"-"},{"$f":"G418","v":"-"},{"$f":"H418","v":"-"},{"$f":"I418","v":"2019-08-29"},{"$f":"J417","v":"КИО"},"-","норматив              не установлен"]
[10,34262,"Манежная пл. уч. 10",346,"-","-","-","-","2019-08-29","КИО","-","норматив              не установлен"]
[11,34263,"Манежная пл. уч. 11",331.8,"-","-","-","-","2019-08-29","КИО","-","норматив              не установлен"]
[12,34264,"Манежная пл. уч. 12",447,"-","-","-","-","2019-08-29","КИО","-","норматив              не установлен"]
[13,34265,"Манежная пл. уч. 13",293.10000000000002,"-","-","-","-","2019-08-29","КИО","-","норматив              не установлен"]
[14,34266,"Манежная пл. уч. 14",498,"-","-","-","-","2019-08-29","КИО","-","норматив              не установлен"]
[15,34267,"Манежная пл. уч. 15",495.5,"-","-","-","-","2019-08-29","КИО","-","норматив              не установлен"]
[16,34268,"Манежная пл. уч. 20",498.2,"-","-","-","-","2019-08-29","КИО","-","норматив              не установлен"]
[17,34269,"Манежная пл. уч. 19",498.2,"-","-","-","-","2019-08-29","КИО","-","норматив              не установлен"]
[18,34270,"Манежная пл. уч. 18",367.5,"-","-","-","-","2019-08-29","КИО","-","норматив              не установлен"]
[19,34271,"Манежная пл. уч. 17",499.7,"-","-","-","-","2019-08-29","КИО","-","норматив              не установлен"]
[20,34272,"Манежная пл. уч. 16",373.3,"-","-","-","-","2019-08-29","КИО","-","норматив              не установлен"]
[21,34345,"М. Садовая ул., уч. 30 (западнее д.56, литера А \nпо Невскому пр.)",157.9,"-","-","-","-","-","-","-","-","Исключен"]
[22,34348,"М. Садовая ул., уч. 25 (юго-западнее д.56, литера А по Невскому пр.)",44.6,"-","-","-","-","-","-","-","-","Исключен"]
[23,34444,"М. Садовая ул., уч. 31",442.7,"-","-","-","-","-","-","-","-","Исключен"]
[24,"34225","Конюшенная пл., уч.26",487.3,"-","-","-","-","2021-11-26",{"$f":"J432","v":"-"},"-","норматив              не установлен","Перенесен\nв раздел \nI Торговые объекты, обеспечивающие проведение ярмарок выходного дня и региональных ярмарок. Киоски\""]
[25,"34226","Конюшенная пл., уч.23",494.31,"-","-","-","-","2021-11-26","-","-","норматив              не установлен","Перенесен\nв раздел \nI Торговые объекты, обеспечивающие проведение ярмарок выходного дня и региональных ярмарок. Киоски\""]
[26,34227,"Конюшенная пл., уч.22",445.2,"-","-","-","-","2022-05-27","-","-","норматив              не установлен"]
[27,34216,"Конюшенная пл., уч.24",498.99,"-","-","-","-","2022-05-27","-","-","норматив              не установлен"]
["Киоски"]
[1,36295,"Дворцовая пл., уч.19 (севернее д. 6-8, литера А по Дворцовой пл.)",218.4,"-","-","-","-","2021-11-26",{"$f":"J435","v":"-"},{"$f":"K435","v":"-"},"норматив              не установлен"]
[2,36631,"М.Садовая ул., уч.43 (севернее д.12, литера Е \nпо Итальянской ул.)",2599.41,"-","-","-","-","2022-04-22","КИО","-","норматив              не установлен"]
[3,"36817","Конюшенная пл., уч.26",192.81,"-","-","-","-","2022-05-27","КИО","-","норматив              не установлен","Перенесен\nиз раздела \nI \"Торговые объекты, обеспечивающие проведение ярмарок выходного дня и региональных ярмарок. Павильоны\""]
[4,"36818","Конюшенная пл., уч.23",335.27,"-","-","-","-","2022-05-27","КИО","-","норматив              не установлен","Перенесен\nиз раздела\nI \"Торговые объекты, обеспечивающие проведение ярмарок выходного дня и региональных ярмарок. Павильоны\""]
["Транспортные средства, специализированные для организации общественного питания"]
[1,"36994","Кленовая ул., уч.6",273.63,"-","-","-","-","2022-09-29","КИО","-","норматив              не установлен","Перенесен\nиз раздела \nI \"Торговые объекты, обеспечивающие проведение ярмарок выходного дня и региональных ярмарок. Павильоны\""]
[2,"36995","Кленовая ул., уч.8",321.52999999999997,"-","-","-","-","2022-09-29","КИО","-","норматив              не установлен","Перенесен\nиз раздела \nI \"Торговые объекты, обеспечивающие проведение ярмарок выходного дня и региональных ярмарок. Павильоны\""]
[3,"36996","Кленовая ул., уч.5",274.08,"-","-","-","-","2022-09-29","КИО","-","норматив              не установлен","Перенесен\nиз раздела \nI \"Торговые объекты, обеспечивающие проведение ярмарок выходного дня и региональных ярмарок. Павильоны\""]
[4,"36997","Кленовая ул., уч.7",294.14999999999998,"-","-","-","-","2022-09-29","КИО","-","норматив              не установлен","Перенесен\nиз раздела \nI \"Торговые объекты, обеспечивающие проведение ярмарок выходного дня и региональных ярмарок. Павильоны\""]
[5,"36998","Кленовая ул., уч.9",493.92,"-","-","-","-","2022-09-29","КИО","-","норматив              не установлен","Перенесен\nиз раздела \nI \"Торговые объекты, обеспечивающие проведение ярмарок выходного дня и региональных ярмарок. Павильоны\""]
["Предельная площадь земельных участков, предназначенных для размещения торговых объектов:\n"]
["1павильоны, обеспечивающие проведение ярмарок, площадь которых превышает 150 кв. м, высота - 6 м, а площадь предназначенного для их размещения земельного участка - 500 кв.м.\n"]

{"sheet":"Лист1","index":1,"n_rows":0,"n_cols":0,"rows_kept":0,"cut":false,"hidden":false,"merged":[]}